Cogmind - Beta 11.1 @@@ ROGUE MODE // 2022.07.08 @ 12:29:22 Player: Calazard Result: Destroyed by Y-45 Defender with Heavy Assault Rifle Performance ------------- Evolutions (1) 500 Regions Visited (3) 600 Robots Destroyed (14) 70 Value Destroyed (446) 446 Prototype IDs (0) 0 Alien Tech Used (0) 0 Bonus (19) 19 TOTAL SCORE: 1635 Bonus ------- High Alert Combat Kills 19 Cogmind --------- Core Integrity 0/400 Matter 220/300 Energy 100/100 System Corruption 1% Temperature Cool (0) Movement Core (50) Location -9/Storage Parts ------- > --- POWER (1) -------- (None) > --- PROPULSION (3) --- (None) > --- UTILITY (3) ------ Terrain Scan Processor > --- WEAPON (2) ------- Mini Grenade Launcher Mini Grenade Launcher > --- INVENTORY (5) ---- Light Nuclear Core Aluminum Leg Improved Aluminum Leg Improved Light Cannon Mini Grenade Launcher Peak State ------------ > --- POWER ------------ Improved Ion Engine > --- PROPULSION ------- Aluminum Leg Aluminum Leg > --- UTILITY ---------- Heat Sink Small Storage Unit Terrain Scan Processor > --- WEAPON ----------- Improved Light Cannon Improved Light Cannon > --- INVENTORY -------- Light Nuclear Core Aluminum Leg Aluminum Leg Improved Light Cannon Rocket Launcher [Rating: 12] Favorites ----------- Power Light Ion Engine Engine Light Ion Engine Propulsion Aluminum Leg Leg Aluminum Leg Utility Small Storage Unit Device Heat Sink Storage Small Storage Unit Processor Terrain Scan Processor Weapon Assault Rifle Energy Gun Small Laser Ballistic Gun Assault Rifle Ballistic Cannon Improved Light Cannon Launcher Mini Grenade Launcher Build | -11 -10 -9 -9 ------- Run | Scr Mat Mat Sto Slots Evolved 2 | . . 2 . Power . | . . . . Propulsion 1 | . . 1 . Utility 1 | . . 1 . Weapon . | . . . . Parts Attached 21 | 5 2 9 5 Power 3 | 1 . 2 . Engine 3 | 1 . 2 . Core . | . . . . Reactor . | . . . . Propulsion 6 | 1 1 4 . Treads . | . . . . Leg 6 | 1 1 4 . Wheel . | . . . . Hover . | . . . . Flight . | . . . . Utility 4 | 1 1 1 1 Device 2 | . 1 1 . Storage 1 | 1 . . . Processor 1 | . . . 1 Hackware . | . . . . Protection . | . . . . Artifact . | . . . . Weapon 8 | 2 . 2 4 Energy Gun 1 | 1 . . . Energy Cannon . | . . . . Ballistic Gun 2 | 1 . 1 . Ballistic Cannon 2 | . . . 2 Launcher 3 | . . 1 2 Special Weapon . | . . . . Impact Weapon . | . . . . Slashing Weapon . | . . . . Piercing Weapon . | . . . . Special Melee Weapon . | . . . . Unidentified Prototypes . | . . . . Parts Lost 12 | . . 5 7 Power 2 | . . 1 1 Propulsion 5 | . . 3 2 Utility 3 | . . 1 2 Weapon 2 | . . . 2 Highest Loss Streak 4 | . . 3 4 To Critical Strikes 1 | . . 1 . Average Slot Usage (%) 78 | . 91 89 61 Engine 9 | . 14 9 6 Leg 22 | . 28 28 13 Device 12 | . 6 17 8 Storage 10 | . 14 11 8 Processor 3 | . . . 8 Energy Gun 5 | . 14 7 . Ballistic Gun 8 | . 14 13 . Ballistic Cannon 6 | . . . 14 Naked Turns . | . . . . Heaviest Build 21 | 11 12 17 21 Greatest Support 30 | 10 20 30 20 Greatest Overweight (x) 3 | 2 . 3 3 Average Overweight (x) . | . . . . Largest Inventory Capacity 8 | 8 8 8 8 Average Capacity 7 | 7 8 8 7 Most Carried 8 | 7 8 8 7 Average Carried 5 | 5 7 6 5 Final Capacity 8 | 8 8 8 5 Final Carried 8 | 7 8 6 5 Class Distribution -------------------- 71% | Mutant 28% | Scavenger-Mutant Dominant Class ---------------- Mutant | -10/Materials Mutant | -9/Materials Scavenger-Mutant | -9/Storage Resources | -11 -10 -9 -9 ----------- Run | Scr Mat Mat Sto Matter Collected 482 | 244 44 164 30 Remotely . | . . . . Salvage Created 458 | . 90 339 29 Parts 27 | . 6 18 3 Haulers Intercepted . | . . . . Recyclers Shooed . | . . . . Parts Field Recycled . | . . . . Retrieved Matter . | . . . . Parts Self-Destructed . | . . . . Prevented . | . . . . Kills | -11 -10 -9 -9 ------- Run | Scr Mat Mat Sto Combat Hostiles Destroyed 14 | . 2 11 1 Guns 11 | . 2 9 . AOE 3 | . . 2 1 Classes Destroyed 3 | . 1 2 . Swarmer 4 | . . 4 . Grunt 7 | . 2 5 . Sentry 3 | . . 2 1 Best Kill Streak 6 | . 2 6 1 Combat Bots Only 6 | . 2 6 1 Max Kills in Single Turn 1 | . 1 1 1 Gunslinging . | . . . . Exploded 1 | . . 1 1 Melee . | . . . . Uniques/NPCs Destroyed . | . . . . Combat | -11 -10 -9 -9 -------- Run | Scr Mat Mat Sto Damage Taken 1640 | . 109 585 946 Core 425 | . 18 70 337 Absorbed by Shields . | . . . . Core Remaining (%) 96 | 100 92 . . Volleys Fired 33 | . 6 24 3 Largest 2 | . 2 2 2 Hottest 60 | . 60 60 60 Shots Fired 63 | . 12 45 6 Gun 54 | . 12 42 . Cannon . | . . . . Launcher 9 | . . 3 6 Special . | . . . . Kinetic 40 | . 6 34 . Thermal 14 | . 6 8 . Explosive 9 | . . 3 6 Electromagnetic . | . . . . Robot Hit Streak 9 | . 9 8 7 Robot Miss Streak 2 | . 1 2 . Penetration Max . | . . . . Secondary Targets 2 | . . 2 . Max Gunslinging Chain 1 | . . 1 . Shots Hit Robots 47 | . 9 32 6 Core Hits 33 | . 5 22 6 Critical Kills . | . . . . Critical Parts Destroyed . | . . . . Critical Strikes . | . . . . Melee Attacks . | . . . . Impact . | . . . . Slashing . | . . . . Piercing . | . . . . Sneak Attacks . | . . . . Combat Hostiles . | . . . . Follow-up Attacks . | . . . . Damage Inflicted 896 | . 100 595 201 Guns 449 | . 100 349 . Cannons . | . . . . Explosions 442 | . . 246 196 Melee . | . . . . Ramming 5 | . . . 5 Kinetic 320 | . 48 272 . Thermal 129 | . 52 77 . Explosive 442 | . . 246 196 Electromagnetic . | . . . . Impact . | . . . . Slashing . | . . . . Piercing . | . . . . Highest Corruption 1 | . . . 1 Average Corruption 1 | . . . 1 Corruption Purged . | . . . . Corruption Blocked . | . . . . Overload Shots . | . . . . Overflow Damage 13 | . . 13 . Projectiles . | . . . . Explosions 13 | . . 13 . Melee . | . . . . Knockbacks . | . . . . Impact . | . . . . Kinetic . | . . . . Secondary . | . . . . Self-Inflicted Damage 74 | . . 74 . Shots 2 | . . 2 . Rammed 3 | . . . 3 Targets Rammed 6 | . . . 6 Kicked 3 | . . . 3 Crushed . | . . . . Highest Temperature 48 | . 48 9 19 Average Temperature 28 | . 33 9 9 Received Heat Transfer 594 | . 63 162 369 Siege Activations . | . . . . Robots Corrupted . | . . . . Combat Hostiles . | . . . . Parts Fried . | . . . . Impact Corruptions . | . . . . Robots Melted . | . . . . Combat Hostiles . | . . . . Parts Melted . | . . . . Heat Transferred 300 | . 125 175 . Parts Sabotaged . | . . . . Parts Stolen . | . . . . Parts Stripped . | . . . . Power Chain Reactions . | . . . . Missiles Intercepted . | . . . . Alert | -11 -10 -9 -9 ------- Run | Scr Mat Mat Sto Peak Influence 435 | . 113 435 313 Initial 183 | . . 47 183 Average 162 | . 49 229 187 Maximum Alert Level 2 | . . 2 1 Low Security (%) 67 | 100 100 29 86 Level 1 27 | . . 58 13 Level 2 4 | . . 12 . Level 3 . | . . . . Level 4 . | . . . . Level 5 . | . . . . High Security . | . . . . Max Security . | . . . . Squads Dispatched 2 | . . 2 . Investigation . | . . . . Extermination . | . . . . Reinforcement 2 | . . 2 . Assault . | . . . . Garrison . | . . . . Intercept . | . . . . Searches Triggered . | . . . . Construction Impeded . | . . . . Haulers Reinforced . | . . . . Active Scanning Responses . | . . . . Cargo Convoy Interrupts . | . . . . Stealth | -11 -10 -9 -9 --------- Run | Scr Mat Mat Sto Distress Signals 4 | . 1 2 1 Communications Jammed . | . . . . Distress Signals . | . . . . Times Spotted 36 | . 5 19 12 Peak Tracking Total 11 | . 4 8 11 Tactical Retreats 4 | . 1 1 2 Traps | -11 -10 -9 -9 ------- Run | Scr Mat Mat Sto Traps Triggered . | . . . . Indirectly . | . . . . Trap Hack Attempts . | . . . . Triggered . | . . . . Disarmed . | . . . . Reprogrammed . | . . . . Reused . | . . . . Traps Extracted . | . . . . Installed . | . . . . Triggered . | . . . . Machines | -11 -10 -9 -9 ---------- Run | Scr Mat Mat Sto Machines Disabled 2 | . . 2 . Max in Single Turn 1 | . . 1 . Machines Sabotaged . | . . . . Garrisons Compromised . | . . . . Overloaded Fab Kills . | . . . . Hacking | -11 -10 -9 -9 --------- Run | Scr Mat Mat Sto Machines Accessed 6 | . . . 6 Terminals 6 | . . . 6 Fabricators . | . . . . Repair Stations . | . . . . Recycling Units . | . . . . Scanalyzers . | . . . . Garrison Access . | . . . . Total Hacks 7 | . . . 7 Successful 5 | . . . 5 Failed 2 | . . . 2 Catastrophic . | . . . . Database Lockouts . | . . . . Manual . | . . . . Terminals 7 | . . . 7 Fabricators . | . . . . Repair Stations . | . . . . Recycling Units . | . . . . Scanalyzers . | . . . . Garrison Access . | . . . . Terminal Hacks 5 | . . . 5 Open Door 2 | . . . 2 Branch Access Points 1 | . . . 1 Zone Layout 2 | . . . 2 Fabricator Hacks . | . . . . Repair Station Hacks . | . . . . Recycling Unit Hacks . | . . . . Scanalyzer . | . . . . Garrison Access Hacks . | . . . . Unauthorized Hacks . | . . . . Terminals . | . . . . Fabricators . | . . . . Repair Stations . | . . . . Recycling Units . | . . . . Scanalyzers . | . . . . Garrison Access . | . . . . Data Cores Recovered . | . . . . Used . | . . . . Hacking Detections 3 | . . . 3 Full Trace Events . | . . . . Feedback Events . | . . . . Feedback Blocked . | . . . . Robot Schematics Acquired . | . . . . Robots Built . | . . . . Authchips . | . . . . Time . | . . . . Total Robot Build Rating . | . . . . Part Schematics Acquired . | . . . . Parts Built . | . . . . Authchips . | . . . . Time . | . . . . Total Part Build Rating . | . . . . Parts Repaired . | . . . . Time . | . . . . Parts Recycled . | . . . . Recycled Matter . | . . . . Retrieved Matter . | . . . . Retrieved Components . | . . . . Parts Scanalyzed . | . . . . Part Schematics Acquired . | . . . . Parts Damaged . | . . . . Bothacking | -11 -10 -9 -9 ------------ Run | Scr Mat Mat Sto Used RIF Installer . | . . . . Robots Hacked . | . . . . Non-combat . | . . . . Combat . | . . . . Robot Hacks Applied . | . . . . Relay Couplers Released . | . . . . Fabnet Peak Effective % . | . . . . Robots Rewired . | . . . . Allies Hacked . | . . . . Hacks Repelled . | . . . . Allies | -11 -10 -9 -9 -------- Run | Scr Mat Mat Sto Total Allies . | . . . . Largest Group . | . . . . Highest-Rated Group . | . . . . Highest-Rated Ally . | . . . . Total Orders . | . . . . Ally Attacks . | . . . . Total Damage . | . . . . Kills . | . . . . Allies Corrupted . | . . . . Allies Melted . | . . . . Intel | -11 -10 -9 -9 ------- Run | Scr Mat Mat Sto Robot Analysis Total . | . . . . Derelict Logs Recovered . | . . . . Drone Launches . | . . . . Drone Recoveries . | . . . . Exploration | -11 -10 -9 -9 ------------- Run | Scr Mat Mat Sto Turns Passed 963 | 114 131 371 347 Spaces Moved 645 | 61 83 233 268 Core 145 | 17 . 1 127 Treads . | . . . . Legs 500 | 44 83 232 141 Wheels . | . . . . Hover . | . . . . Flight . | . . . . Fastest Speed 50 | 50 120 120 50 Average Speed 123 | 157 120 123 115 Slowest Speed 260 | 190 120 200 260 Overloaded Moves . | . . . . Propulsion Burnouts . | . . . . Robots Hopped . | . . . . Cave-ins Triggered . | . . . . Exploration Rate (%) 23 | 5 28 23 37 Regions Visited 3 Branch Regions 1 Pre-discovered Areas . | . . . . Known Exits Taken . | . . . . Unknown Exits Taken 3 | 1 1 1 . Scrap Searched . | . . . . Spaces Dug . | . . . . Terrain Destroyed 40 | . . 17 23 Melee . | . . . . Projectile . | . . . . AOE 40 | . . 17 23 Terrain Rammed . | . . . . Walls Destroyed . | . . . . Machines Disabled . | . . . . Actions | -11 -10 -9 -9 --------- Run | Scr Mat Mat Sto Total 750 | 77 105 271 297 Wait 14 | 5 7 1 1 Move 642 | 60 82 232 268 Hop . | . . . . Pick Up 21 | 7 5 3 6 Fast Attach 14 | 5 1 4 4 Attach 6 | . 1 4 1 Detach . | . . . . Swap 1 | . . 1 . Drop 13 | . 3 2 8 Fire 33 | . 6 24 3 Melee . | . . . . Ram 3 | . . . 3 Kick 3 | . . . 3 Crush . | . . . . Escape Stasis . | . . . . Rewire . | . . . . Trap . | . . . . Miscellaneous . | . . . . Route ------- -11/Scrapyard -10/Materials -9/Materials -9/Storage (discovered 1 exit: Rec) History --------- Turn | Location | Event 27 | -11/Scrapyard | Discovered new exit (range 16) 115 | -11/Scrapyard | Entered Materials 234 | -10/Materials | Discovered new exit (range 7) 246 | -10/Materials | Entered another Materials area 246 | -9/Materials | Evolved 2 slots: Propulsion x1, Utility x1 305 | -9/Materials | Build established: Mutant 551 | -9/Materials | Lost 3 parts (1p2n) 589 | -9/Materials | Discovered new exit (range 5) 617 | -9/Materials | Entered Storage 871 | -9/Storage | Lost 3 parts (1p1n1w) 871 | -9/Storage | Core integrity fell below 50% 873 | -9/Storage | Identified exit to Recycling 885 | -9/Storage | Core integrity fell below 20% 916 | -9/Storage | Lost 4 parts (1n2u1w) 964 | -9/Storage | Destroyed by Y-45 Defender with Heavy Assault Rifle Last Messages --------------- 00889_ Slammed into A-02 Transporter. 00889_ Destabilizing: System interference. 00889_ Terrain Scan Processor temporarily disabled. 00890_ A-02 Transporter sends out distress signal. 00894_ Connecting with Door Terminal... 00913_ Dropped Aluminum Leg. 00913_ Acquired Aluminum Leg. 00914_ Dropped Aluminum Leg. 00914_ Acquired Aluminum Leg. 00933_ Dropped Aluminum Leg. 00933_ Acquired Imp. Aluminum Leg. 00936_ Connecting with Terminal... >>Layout(Zone) Retrieving Zone 4W layout... Downloaded map data. 00946_ Acquired Mni. Grenade Launcher. 00950_ Dropped Rocket Launcher. 00950_ Acquired Mni. Grenade Launcher. 00958_ Critical hit (Burn: +37). 00958_ Y-45 Defender destroyed. Map ----- +----------------------------------------------------+ | ???????????????????????????????????? | | ???????????????????????????????????? | | ???????????????????????????????????? | | ???????????????????????????????????? | | ???????????????????????????????????? | | ???????????????????????????????????? | | ???????????????????????????????????? | | ???????????????????????????????????? | | ???????????????????????????????????? | | ???????????????????????????????????? | | ???????????????????????????????????? | | ???????????????????????????????????? | | ???????????????????????????????????? | | ???????????????????????????????????? | | ??????????????????#????????????????? | | ?????????????????? ??????""????????? | | ?????????????????? ?????? ????????? | | ?????????????????? ?????? ????????? | | ?????????????????? ????###+###?????? | | ?????????????????? ????# ####??? | | ?????????????????# #???# ???? | | ?????????????????# #???# ????? | | ????????????###### #???# | | ?????????######### #???# ####### | | ?????????#] ] #### #???## ##?????? | | ?????????#]@ #T## #????# ##???### | | ?????????# ] " # ###### ##### | | ?????????#]] # T | | ?????????#]] " % | | ?????????#]] # Y u##### %##### | | ?????????######## ####+########+ | | ????????????###### ## | | ???????????? + = ## | | ?????????"" # # !!! ## | | ???????# "T """ # # !!! ## | | ???????# "" """ # # !!! # | | ???????# """ # # ## | | ???????# # # "T" ## | | ???????# # +% ## | | ???????# / ################ | | ??????????##### ## #????????# | | ????????????"##### #????????# | | ????????????" #????????# | | ??????????>?" #????????# """ " | | ????????????"#T##+########???# """ " | | ????????????#### #???# """ " | | ???????????????# """ #???# | | ???????????????# " """" #???# | | ???????????????# " "" " #???#### ## | | ???????????????# " "" " #??????#### | +----------------------------------------------------+ Best States ------------- Heat Dissipation 38 Energy Generation 12 Energy Capacity 265 Matter Stores 300 Matter Capacity 300 Sight Range 16 Robot Scan Range 14 Terrain Scan Density 85 Evasion (%) 55 Item Schematics ----------------- None Robot Schematics ------------------ None Fabricated ------------ Nothing Alien Tech Used ----------------- None Achievements -------------- None Challenges ------------ None Game ------ Seed ImprovedFocalFirepult Manual? 0 Play Time 00:11:24 Cumulative 17.5 hours Start 2022.07.08 @ 12:21:22 End 2022.07.08 @ 12:29:22 Sessions 1 Manual Loads 0 Difficulty Rogue Special Mode None Game No. 24 Rogue 24 Adventurer 0 Explorer 0 Win Type - Total 0 Types 0/0/0/0/0/0/0/0/0 Lore% 23 Gallery% 30 Achievement% 23 Wizard Run 0 Options --------- ASCII 0 Keyboard 0 Movement Numpad Keybinds 0 Fullscreen 0 Font 16/Terminus Map View 76x50 Tactical HUD 1 Map Filters NONE Filters NONE Steam 1 RUN: 4abb9d32-b917-4cbd-a841-399ffd9a1b8a